bitfinex/quotes_BTCUSD_20251217
["timestamp","ask_amount","ask_price","bid_price","bid_amount"]
[1765985310825,0.0138248,89840.0,89830.0,0.01113213]
[1765985310826,0.01113114,89838.0,89830.0,0.01113213]
[1765985311087,0.01113127,89837.0,89829.0,0.23377588]
[1765985311226,0.00269391,89840.0,89836.0,0.01113139]
[1765985311432,0.00269391,89840.0,89837.0,0.00733951]
[1765985311633,0.00269391,89840.0,89837.0,0.01113127]
[1765985311838,4e-07,89844.0,89839.0,0.22262046]
[1765985312037,4e-07,89844.0,89843.0,0.22261055]
[1765985313366,4e-07,89844.0,89841.0,0.23374461]
[1765985313568,4e-07,89844.0,89842.0,0.22994768]
[1765985313837,0.01113102,89839.0,89837.0,0.01796]
[1765985314025,0.01113089,89840.0,89837.0,0.01796]
[1765985314184,0.01113102,89839.0,89832.0,0.01847154]
[1765985314384,0.01113089,89840.0,89833.0,0.01113176]
[1765985314601,0.01274081,89844.0,89836.0,0.01113139]
[1765985314602,0.00161001,89839.0,89836.0,0.01113139]
[1765985314809,0.00161001,89839.0,89837.0,0.22262323]
[1765985315007,0.00161001,89839.0,89835.0,0.01113151]
[1765985315219,0.00161001,89839.0,89829.0,0.22264376]
[1765985315417,0.00161001,89839.0,89810.0,0.6981161]
[1765985315418,0.00161001,89839.0,89836.0,0.01113139]
[1765985315612,0.00161001,89839.0,89837.0,0.22262427]
[1765985315813,0.00161001,89839.0,89835.0,0.01113151]
[1765985316078,0.01113114,89838.0,89830.0,0.25173365]
[1765985316226,0.00261001,89839.0,89837.0,0.22262422]
[1765985316432,0.00161001,89839.0,89837.0,0.22262422]
[1765985316630,4e-07,89844.0,89842.0,0.22261285]
[1765985316948,4e-07,89844.0,89843.0,0.02529633]
[1765985318306,8.7e-07,89848.0,89847.0,0.22260064]
[1765985318511,8.7e-07,89848.0,89847.0,0.24056064]
[1765985318953,8.7e-07,89848.0,89847.0,1.85141903]
[1765985319359,8.7e-07,89848.0,89847.0,2.05371903]
[1765985320066,8.7e-07,89848.0,89847.0,2.08141597]
[1765985320271,8.7e-07,89848.0,89847.0,2.08241597]
[1765985321235,8.7e-07,89848.0,89847.0,2.45415597]
[1765985321430,8.7e-07,89848.0,89847.0,0.51430064]
[1765985321630,8.7e-07,89848.0,89847.0,0.53126064]
[1765985321807,1e-08,89848.0,89847.0,0.53126064]
[1765985322211,0.01112792,89864.0,89850.0,0.01112966]
[1765985322212,0.01112891,89856.0,89850.0,0.01112966]
[1765985322523,0.01112891,89856.0,89847.0,0.22260064]
[1765985322524,0.01112842,89860.0,89854.0,0.01112916]
[1765985322728,0.01112829,89861.0,89855.0,0.01112904]
[1765985322958,0.01112817,89862.0,89857.0,0.01112879]
[1765985323113,0.01112842,89860.0,89851.0,0.23371963]
[1765985323330,0.23368752,89864.0,89855.0,0.01112904]
[1765985323567,0.23368752,89864.0,89853.0,0.01112928]
[1765985323568,0.0111273,89869.0,89860.0,0.01112842]
[1765985323694,0.01112743,89868.0,89862.0,0.01112817]
[1765985323910,0.01112755,89867.0,89861.0,0.01112829]
[1765985324127,0.01112681,89873.0,89867.0,0.01112755]
[1765985324370,0.01112631,89877.0,89867.0,0.01112755]
[1765985324572,0.05001839,89900.0,89850.0,0.01796]
[1765985324573,0.01796,89906.0,89875.0,0.01112656]
[1765985324784,0.01112507,89887.0,89881.0,0.01112582]
[1765985325000,0.01112507,89887.0,89879.0,0.01112606]
[1765985325209,0.01112532,89885.0,89879.0,0.01112606]
[1765985325412,0.00161001,89887.0,89881.0,0.23364171]
[1765985325622,0.00161001,89887.0,89881.0,0.01112582]
[1765985325840,0.01112396,89896.0,89887.0,0.2225007]
[1765985326057,0.01112297,89904.0,89888.0,0.00730847]
[1765985326265,1e-08,89889.0,89888.0,0.00730847]
[1765985326686,1e-08,89889.0,89888.0,0.77565847]
[1765985326890,1e-08,89889.0,89888.0,0.01796]
[1765985327108,1e-08,89889.0,89888.0,0.02526821]
[1765985327933,1e-08,89889.0,89888.0,0.77565821]
[1765985328158,1e-08,89889.0,89888.0,1.5421]
[1765985328352,0.0004,89933.0,89888.0,1.5421]
[1765985328353,0.0004,89933.0,89920.0,0.22241992]
[1765985328775,0.0004,89933.0,89924.0,0.0111205]
[1765985329072,0.00231271,89925.0,89924.0,0.0111205]
[1765985329717,0.00231271,89925.0,89924.0,0.02888167]
[1765985329903,0.0004,89933.0,89932.0,0.22239025]
[1765985330117,0.02990162,89973.0,89949.0,0.01111741]
[1765985330118,0.01111642,89957.0,89949.0,0.01111741]
[1765985330247,0.0004,89959.0,89944.0,0.01111802]
[1765985330248,0.23345665,89953.0,89946.0,0.23347138]
[1765985330446,0.01111679,89954.0,89946.0,0.23347265]
[1765985330669,0.23345081,89955.0,89947.0,0.22235133]
[1765985330880,0.01111666,89955.0,89949.0,0.22234732]
[1765985331084,0.01111605,89960.0,89950.0,0.22234453]
[1765985331257,0.01111679,89954.0,89947.0,0.01111765]
[1765985331458,0.22231354,89964.0,89944.0,0.22236001]
[1765985331459,0.01111691,89953.0,89944.0,0.01072802]
[1765985331661,0.01111592,89961.0,89950.0,0.22234553]
[1765985331880,0.01111617,89959.0,89950.0,0.22234553]
[1765985332138,0.01111592,89961.0,89950.0,0.22234553]
[1765985332331,0.01111605,89960.0,89950.0,0.22234553]
[1765985332470,0.01111493,89969.0,89950.0,0.22234553]
[1765985332675,0.01111493,89969.0,89963.0,0.01111568]
[1765985332877,0.01111592,89961.0,89952.0,0.23345578]
[1765985333088,0.01111568,89963.0,89957.0,0.01111642]
[1765985333263,0.01111568,89963.0,89954.0,0.22233586]
[1765985333264,0.01111592,89961.0,89956.0,0.01111654]
[1765985333469,0.01111568,89963.0,89957.0,0.01111642]
[1765985333672,0.03992324,89997.0,89937.0,0.33356607]
[1765985333673,0.01111382,89978.0,89960.0,0.01111605]
[1765985333873,0.01111531,89966.0,89960.0,0.01111605]
[1765985334152,0.01111518,89967.0,89961.0,0.01111592]
[1765985334325,0.01111518,89967.0,89961.0,0.23343275]
[1765985334753,0.23502511,89969.0,89950.0,0.48263]
[1765985334754,0.22234012,89953.0,89950.0,0.48263]
[1765985334929,0.23344658,89957.0,89950.0,0.01792]
[1765985335076,0.01111617,89959.0,89952.0,0.01111704]
[1765985335274,0.01111617,89959.0,89954.0,0.01111679]
[1765985335473,0.01111617,89959.0,89952.0,0.01111704]
[1765985335804,0.23344088,89959.0,89952.0,0.01111704]
[1765985335974,0.22232197,89960.0,89953.0,0.01111691]
[1765985336175,0.01111666,89955.0,89949.0,0.2907]
[1765985336489,0.03847,89967.0,89949.0,0.2907]
[1765985336490,0.0111158,89962.0,89956.0,0.01111654]
[1765985336700,0.0111158,89962.0,89954.0,0.01111679]
[1765985336932,0.0111158,89962.0,89953.0,0.02903691]
[1765985336933,0.01111642,89957.0,89953.0,0.01792]
[1765985337135,0.23343023,89963.0,89954.0,0.22233474]
[1765985337336,0.01111642,89957.0,89953.0,0.01792]
[1765985337552,0.01111679,89954.0,89947.0,0.2907]
[1765985337752,0.01111728,89950.0,89948.0,0.01752]
[1765985337951,0.01111666,89955.0,89949.0,0.01111741]
[1765985338113,0.23344825,89956.0,89951.0,0.01111716]
[1765985338325,0.30231455,89963.0,89949.0,0.23346416]
[1765985338326,0.23344207,89959.0,89950.0,0.30181728]
[1765985338550,0.31343032,89963.0,89956.0,0.22233024]
[1765985338723,0.01111642,89957.0,89952.0,0.01111704]
[1765985338940,0.01011629,89958.0,89953.0,0.01111691]
[1765985339276,0.01111617,89959.0,89952.0,0.01111704]
[1765985339481,0.01111555,89964.0,89955.0,0.22233338]
[1765985339693,0.01111555,89964.0,89957.0,0.22232782]
[1765985339865,0.04008001,89967.0,89961.0,0.01111592]
[1765985340064,0.01111592,89961.0,89956.0,0.01111654]
[1765985340282,0.04008001,89967.0,89965.0,0.22230796]
[1765985341089,0.03847,89967.0,89965.0,0.22230796]
[1765985341469,0.03847,89967.0,89965.0,0.22230794]
[1765985341827,0.03847,89967.0,89964.0,0.23342622]
[1765985342036,0.23342245,89966.0,89958.0,0.24024385]
[1765985342173,0.23342245,89966.0,89940.0,1.0195055]
[1765985342174,0.23343463,89962.0,89959.0,0.2907]
[1765985342378,0.01111691,89953.0,89950.0,0.01792]
[1765985342578,0.06888,89989.0,89963.0,0.01111568]
[1765985342787,1e-08,89967.0,89966.0,1.4544462]
[1765985342990,1e-08,89967.0,89966.0,1.50446459]
[1765985343414,1e-08,89967.0,89966.0,2.50446459]
[1765985343963,1e-08,89990.0,89987.0,0.01111271]
[1765985344221,1e-08,89990.0,89978.0,0.01111382]
[1765985344397,1e-08,89990.0,89989.0,1.45438938]
[1765985344540,1e-08,90001.0,89999.0,0.22222315]
[1765985344760,1e-08,90001.0,90000.0,1.25006]
[1765985347221,1e-08,90001.0,89999.0,0.22222401]
[1765985347427,1e-08,90001.0,89998.0,0.01111135]
[1765985347428,0.00161001,90000.0,89981.0,0.01111345]
[1765985347562,0.01111271,89987.0,89982.0,0.01792]
[1765985347780,0.01111321,89983.0,89978.0,0.49011]
[1765985347977,0.01111321,89983.0,89971.0,0.01111469]
[1765985347978,0.22228661,89974.0,89965.0,0.01111543]
[1765985348183,0.23339668,89976.0,89971.0,0.01111469]
[1765985348407,0.01111382,89978.0,89971.0,0.01111469]
[1765985348665,0.01111333,89982.0,89972.0,0.01792]
[1765985348797,0.01111481,89970.0,89961.0,0.01111592]
[1765985349022,0.01111493,89969.0,89962.0,0.01792]
[1765985349206,0.01111493,89969.0,89965.0,0.01111543]
[1765985349408,0.23341392,89969.0,89962.0,0.0290358]
[1765985349610,0.01111444,89973.0,89967.0,0.01111518]
[1765985349789,0.22226917,89981.0,89963.0,0.22231124]
[1765985349987,0.01111407,89976.0,89964.0,0.49864]
[1765985350236,0.01111407,89976.0,89962.0,0.01699799]
[1765985350237,0.01792,90002.0,89983.0,0.01111321]
[1765985350462,0.01111074,90003.0,89992.0,0.01111209]
[1765985350664,0.01111049,90005.0,89993.0,0.01792]
[1765985350665,0.30181049,90005.0,89993.0,0.01792]
[1765985350804,0.01111135,89998.0,89993.0,0.01792]
[1765985351005,0.22383963,89998.0,89988.0,0.01792]
[1765985351207,0.0111116,89996.0,89988.0,0.01792]
[1765985351411,0.01111259,89988.0,89987.0,0.01792]
[1765985351633,0.23336273,89989.0,89985.0,0.01792]
[1765985351841,0.00161001,89996.0,89978.0,0.22227557]
[1765985351842,0.01111308,89984.0,89978.0,0.22227557]
[1765985352063,0.01111271,89987.0,89981.0,0.01111345]
[1765985352307,0.01111271,89987.0,89983.0,0.01111321]
[1765985352497,0.22225727,89986.0,89979.0,0.23338723]
[1765985352696,0.01111345,89981.0,89980.0,0.01792]
[1765985352917,0.01111345,89981.0,89975.0,0.01111419]
[1765985353127,0.01111333,89982.0,89978.0,0.01111382]
[1765985353329,0.23338498,89981.0,89975.0,0.01111419]
[1765985353485,0.23338498,89981.0,89976.0,0.01792]
[1765985353486,0.2222723,89980.0,89976.0,0.01792]
[1765985353688,0.2222723,89980.0,89971.0,0.01111469]
[1765985353689,0.01111395,89977.0,89968.0,0.2334162]
[1765985353914,0.01111382,89978.0,89968.0,0.2334162]
[1765985353915,0.01111382,89978.0,89975.0,0.01792]
[1765985354121,0.01111234,89990.0,89983.0,0.01111321]
[1765985354322,0.01272284,89986.0,89983.0,0.001]
[1765985354521,0.22226108,89985.0,89983.0,0.001]
[1765985354685,0.00161001,89986.0,89975.0,0.01792]
[1765985354887,0.00161001,89986.0,89979.0,0.0111137]
[1765985355084,0.01111197,89993.0,89987.0,0.01111271]
[1765985355354,0.2907,89994.0,89987.0,0.01211557]
[1765985355540,0.01111172,89995.0,89988.0,0.01111259]
[1765985355744,0.13817,90008.0,89987.0,0.00100286]
[1765985355745,0.01111234,89990.0,89987.0,0.00100286]
[1765985356222,0.01111283,89986.0,89984.0,0.01792]
[1765985356414,0.23338025,89982.0,89977.0,0.01792]
[1765985356628,0.23337912,89983.0,89978.0,0.01111382]
[1765985356834,0.01111345,89981.0,89977.0,0.01792]
[1765985357041,0.01111308,89984.0,89977.0,0.01792]
[1765985357280,0.01111308,89984.0,89977.0,0.02903395]
[1765985357476,0.01111283,89986.0,89979.0,0.23338538]
[1765985357477,0.01111296,89985.0,89979.0,0.23338538]
[1765985357690,0.01111321,89983.0,89977.0,0.01111395]
[1765985357910,0.0111137,89979.0,89974.0,0.01792]
[1765985358143,0.2222642,89983.0,89972.0,0.01792]
[1765985358343,0.01111308,89984.0,89974.0,0.01111432]
[1765985358344,0.0111137,89979.0,89974.0,0.01111432]
[1765985358532,0.01111358,89980.0,89975.0,0.01111419]
[1765985358723,0.01111246,89989.0,89977.0,0.01111395]
[1765985359031,0.29070001,90001.0,89997.0,0.01111148]
[1765985359287,0.29231002,90001.0,89998.0,0.01111135]
[1765985359494,0.29231002,90001.0,89999.0,0.22222469]
[1765985359628,0.29231002,90001.0,89997.0,0.01111148]
[1765985359629,1e-08,90001.0,89997.0,0.01111148]
[1765985359829,0.23333339,90000.0,89995.0,0.01111172]
[1765985360032,0.00161001,90000.0,89988.0,0.01111259]
[1765985360250,0.00161001,90000.0,89998.0,0.22222716]
[1765985360476,0.01110839,90022.0,90016.0,0.01110913]
[1765985360694,0.01110753,90029.0,90022.0,0.01110839]
[1765985360910,0.01110753,90029.0,90016.0,0.00161287]
[1765985360911,0.01110827,90023.0,90017.0,0.01110901]
[1765985361151,0.01110814,90024.0,90016.0,0.00161287]
[1765985361357,0.01110864,90020.0,90016.0,0.00161287]
[1765985361594,0.01110851,90021.0,90016.0,0.00161287]
[1765985361595,0.01110876,90019.0,90016.0,0.00161287]
[1765985361807,0.01110987,90010.0,90005.0,0.01111049]
[1765985362016,0.0111095,90013.0,90009.0,0.01111]
[1765985362247,0.01110938,90014.0,90008.0,0.01111012]
[1765985362422,0.30862,90028.0,90005.0,0.00161287]
[1765985362565,0.02902765,90028.0,90024.0,0.01110814]
[1765985362768,0.2907,90030.0,90024.0,0.01110814]
[1765985362964,0.01110925,90015.0,90009.0,0.01792]
[1765985363280,0.01110864,90020.0,90013.0,0.0111095]
[1765985363484,0.01110987,90010.0,90004.0,0.23332263]
[1765985363711,0.01111185,89994.0,89986.0,0.75669]
[1765985363892,0.01111333,89982.0,89973.0,0.01111444]
[1765985364108,0.01111308,89984.0,89979.0,0.0111137]
[1765985364446,0.01111321,89983.0,89978.0,0.01111382]
[1765985364731,0.01111246,89989.0,89983.0,0.01111321]
[1765985364882,0.01111259,89988.0,89983.0,0.01111321]
[1765985365084,0.01111259,89988.0,89981.0,0.23338099]
[1765985365085,0.2907,89994.0,89987.0,0.01111271]
[1765985365312,0.01111321,89983.0,89977.0,0.01111395]
[1765985365517,0.01111283,89986.0,89978.0,0.01111382]
[1765985365695,0.22227655,89978.0,89971.0,0.01111469]
[1765985365897,0.01111333,89982.0,89977.0,0.01111395]
[1765985366098,0.0111137,89979.0,89974.0,0.01111432]
[1765985366441,0.00161,89986.0,89984.0,0.22226107]
[1765985366585,0.01111111,90000.0,89994.0,0.01111185]
[1765985366808,0.2907,89996.0,89978.0,1.24235]
[1765985367017,0.2907,89996.0,89947.0,0.51674]
[1765985367018,0.01111555,89964.0,89947.0,0.51674]
[1765985367247,0.01111481,89970.0,89947.0,0.51674]
[1765985367581,0.22230486,89967.0,89959.0,0.22232232]
[1765985367726,0.01111518,89967.0,89961.0,0.01111592]
[1765985367926,0.01111518,89967.0,89962.0,0.0111158]
[1765985368127,0.23341036,89971.0,89965.0,0.01111543]
[1765985368128,0.01111481,89970.0,89965.0,0.01111543]
[1765985368346,0.01111419,89975.0,89968.0,0.01111506]
[1765985368561,0.23339952,89975.0,89966.0,0.01111531]
[1765985368767,0.22228399,89975.0,89967.0,0.01111518]
[1765985368967,0.00161,89996.0,89972.0,0.01111456]
[1765985369144,0.30181296,89985.0,89980.0,0.01111358]
[1765985369342,0.30181296,89985.0,89981.0,0.01111345]
[1765985369629,0.2907,89985.0,89973.0,0.22228783]
[1765985369871,0.2907,89985.0,89970.0,0.01111481]
[1765985370047,0.2907,89985.0,89980.0,0.01111358]
[1765985370246,0.05656,89993.0,89976.0,0.01111407]
[1765985370454,0.05656,89993.0,89978.0,0.01111382]
[1765985370663,0.05656,89993.0,89979.0,0.22227397]
[1765985370865,0.05656,89993.0,89917.0,0.13104852]
[1765985371063,0.05656,89993.0,89990.0,0.01111234]
[1765985371276,0.00161,89996.0,89993.0,0.17678987]
[1765985371641,0.00161,89996.0,89994.0,0.22223563]
[1765985371834,0.01110901,90017.0,89999.0,0.23333541]
[1765985372027,0.01792,90010.0,90007.0,0.01111024]
[1765985372231,0.01111,90009.0,89992.0,0.01111209]
[1765985372463,1.0195055,90002.0,89992.0,0.01111209]
[1765985372632,0.01792,90008.0,89999.0,0.01111123]
[1765985372835,0.02903012,90008.0,89994.0,0.01111185]
[1765985373160,0.01111074,90003.0,89963.0,0.44462363]
[1765985373299,0.2907,89994.0,89990.0,0.01111234]
[1765985373504,0.2907,89994.0,89992.0,0.22224119]
[1765985373707,0.01792,89996.0,89995.0,0.22223456]
[1765985373915,0.002,90008.0,90004.0,0.23332241]
[1765985374094,0.01792,90009.0,89997.0,0.01111148]
[1765985374293,0.01111012,90008.0,89993.0,0.01111197]
[1765985374498,0.01111012,90008.0,89975.0,0.33342286]
[1765985374499,0.01792,90009.0,89996.0,0.0111116]
[1765985374704,0.01792,90009.0,90007.0,0.22220328]
[1765985374904,0.01792,90009.0,90007.0,0.22220434]
[1765985375106,0.01792,90009.0,90005.0,0.01111049]
[1765985375326,0.01792,90009.0,90007.0,0.22220399]
[1765985375875,0.01110913,90016.0,90008.0,0.01111012]
[1765985376059,0.01110888,90018.0,90009.0,0.01111]
[1765985376219,0.00161,90022.0,90015.0,0.01110925]
[1765985376420,0.00161,90018.0,90015.0,0.23329363]
[1765985376644,0.01110913,90016.0,90011.0,0.01110975]
[1765985376844,0.01110962,90012.0,90007.0,0.001]
[1765985377086,0.01110962,90012.0,90005.0,0.01111049]
[1765985377286,0.00161,90016.0,90013.0,0.0111095]
[1765985377581,0.22219395,90012.0,90003.0,0.01111074]
[1765985377790,0.00161,90012.0,90009.0,0.01111]
[1765985377927,0.01792,90030.0,90025.0,0.01110802]
[1765985378153,0.01953,90030.0,90027.0,0.22215503]
[1765985378353,0.01953,90030.0,90022.0,0.23327617]
[1765985378354,0.01110777,90027.0,90022.0,0.23327617]
[1765985378574,0.0111079,90026.0,90021.0,0.01110851]
[1765985378804,0.01110777,90027.0,90019.0,0.23328286]
[1765985378998,0.01110827,90023.0,90019.0,0.01110876]
[1765985379214,0.2221663,90023.0,90017.0,0.01110901]
[1765985379412,0.2221663,90023.0,89984.0,0.2907]
[1765985379413,0.01110913,90016.0,89984.0,0.2907]
[1765985379570,0.01111,90009.0,89989.0,1.26101]
[1765985379774,0.01111024,90007.0,90002.0,0.01111086]
[1765985379971,0.00161,90023.0,89990.0,0.01792]
[1765985379972,0.00161,90023.0,90003.0,0.01792]
[1765985380333,0.01110901,90017.0,90008.0,0.01111012]
[1765985380532,0.01110925,90015.0,90009.0,0.22219996]
[1765985380691,0.23327889,90021.0,90016.0,0.01110913]
[1765985380873,0.01110814,90024.0,90018.0,0.01110888]
[1765985381072,0.0111079,90026.0,90021.0,0.2221699]
[1765985381275,0.01110876,90019.0,90014.0,0.22218736]
[1765985381596,0.22216434,90024.0,90019.0,0.01110876]
[1765985381946,0.01110876,90019.0,90014.0,0.01110938]
[1765985382145,0.11492016,90047.0,90028.0,0.01110765]
[1765985382345,0.01110605,90041.0,90032.0,0.01110716]
[1765985382488,0.23321723,90045.0,90040.0,0.01110617]
[1765985382689,0.0111058,90043.0,90036.0,0.01110666]
[1765985383003,0.01110679,90035.0,90029.0,0.24007064]
[1765985383323,0.01110654,90037.0,90032.0,0.22214149]
[1765985383503,0.01110654,90037.0,90029.0,0.22215064]
[1765985383504,0.22213379,90036.0,90029.0,0.2221504]
[1765985383706,0.2332479,90033.0,90028.0,0.23326065]
[1765985383906,0.00161,90029.0,90011.0,0.2907]
[1765985384109,0.01110827,90023.0,90010.0,0.01110987]
[1765985384318,0.01110925,90015.0,90008.0,0.01111012]
[1765985384511,0.01110888,90018.0,90011.0,0.01110975]
[1765985384736,0.01792,90035.0,90003.0,0.01111074]
[1765985384737,0.00161,90015.0,90003.0,0.01111074]
[1765985384945,0.01110975,90011.0,90006.0,0.2333173]
[1765985385290,0.23331025,90009.0,90004.0,0.2907]
[1765985385489,0.01110987,90010.0,90004.0,0.2907]
[1765985385703,0.01111024,90007.0,90004.0,0.2907]
[1765985386049,0.23331644,90007.0,90004.0,0.2907]
[1765985386247,0.22221242,90005.0,90002.0,0.2907]
[1765985386455,0.22221242,90005.0,89973.0,0.05001839]
[1765985386456,0.01111209,89992.0,89985.0,0.01111296]
[1765985386767,0.30181259,89988.0,89979.0,0.0111137]
[1765985386932,0.2907,89988.0,89986.0,0.22225446]
[1765985387347,0.2907,89988.0,89984.0,0.01111308]
[1765985387662,0.00430931,90015.0,89950.0,1.27265538]
[1765985387663,0.01792,90013.0,89997.0,0.01111148]
[1765985387861,0.01111197,89993.0,89988.0,0.01111259]
[1765985388062,0.01111123,89999.0,89991.0,0.01111222]
[1765985388401,0.01111074,90003.0,89994.0,0.22223491]
[1765985388544,0.01111135,89998.0,89993.0,0.01111197]
[1765985388747,0.01111185,89994.0,89990.0,0.01111234]
[1765985388952,0.01111123,89999.0,89976.0,0.73911]
[1765985388953,1.29057538,90000.0,89976.0,0.22228091]
[1765985389152,1.29057538,90000.0,89965.0,0.73911]
[1765985389153,0.01111456,89972.0,89967.0,0.01111518]
[1765985389373,0.01792,89986.0,89956.0,0.01792]
[1765985389660,0.30181308,89984.0,89979.0,0.0111137]
[1765985389883,0.30181308,89984.0,89974.0,0.2333983]
[1765985389884,0.01111382,89978.0,89973.0,0.01111444]
[1765985390102,0.2907,89984.0,89980.0,0.01111358]
[1765985390339,0.01792,89999.0,89970.0,0.01111481]
[1765985390340,0.01111382,89978.0,89970.0,0.01111481]
[1765985390542,0.01111395,89977.0,89971.0,0.01111469]
[1765985390807,0.01111407,89976.0,89971.0,0.01111469]
[1765985391063,0.01111395,89977.0,89972.0,0.22229062]
[1765985391272,0.01111407,89976.0,89970.0,0.22229528]
[1765985391479,0.01111407,89976.0,89970.0,0.01111481]
[1765985391480,0.01111419,89975.0,89970.0,0.01111481]
[1765985391683,0.22229218,89972.0,89967.0,0.01111518]
[1765985391889,0.01111444,89973.0,89962.0,0.0111158]
[1765985391890,0.01111493,89969.0,89962.0,0.0111158]
[1765985392044,0.01111469,89971.0,89965.0,0.01111543]
[1765985392256,0.01111469,89971.0,89966.0,0.01111531]
[1765985392453,0.23341036,89971.0,89966.0,0.01111531]
[1765985392695,0.01111481,89970.0,89964.0,0.01111555]
[1765985392895,0.01111493,89969.0,89963.0,0.01111568]
[1765985393188,0.01792,89985.0,89862.0,0.18727412]
[1765985393189,0.30862,89985.0,89957.0,0.01111642]
[1765985393404,0.01111605,89960.0,89956.0,0.01792]
[1765985393607,0.01111617,89959.0,89956.0,0.01792]
[1765985393871,0.01111629,89958.0,89951.0,0.01111716]
[1765985394061,0.01111617,89959.0,89954.0,0.01111679]
[1765985394262,0.23344286,89958.0,89953.0,0.01111691]
[1765985394501,0.01111543,89965.0,89961.0,0.01111592]
[1765985394724,0.01111531,89966.0,89961.0,0.01111592]
[1765985394931,0.01792,89973.0,89965.0,0.01111543]
[1765985395151,0.30181444,89973.0,89964.0,0.01111555]
[1765985395369,0.00161,89974.0,89970.0,0.01111481]
[1765985395595,0.2907,89975.0,89970.0,0.01111481]
[1765985395820,0.2907,89975.0,89960.0,0.73911]
[1765985395821,0.01111172,89995.0,89987.0,0.01111271]
[1765985396049,2.78974002,90045.0,89995.0,0.22223436]
[1765985396050,0.01792,90015.0,89995.0,0.22223436]
[1765985396296,0.01792,90014.0,90005.0,0.01111049]
[1765985396524,0.01953,90020.0,90006.0,0.01111037]
[1765985396717,0.2907,90011.0,90009.0,0.01111]
[1765985396940,0.23329844,90014.0,90009.0,0.01111]
[1765985396941,0.2332975,90014.0,90009.0,0.01111]
[1765985397217,0.01110975,90011.0,90007.0,0.01111024]
[1765985397410,0.2907,90013.0,90007.0,0.01111024]
[1765985397630,0.01953,90020.0,90014.0,0.01110938]
[1765985397847,0.01953,90020.0,90015.0,0.01110925]
[1765985398029,0.01953,90020.0,90014.0,0.23329689]
[1765985398030,0.01110876,90019.0,90014.0,0.01110938]
[1765985398229,0.22217719,90019.0,90011.0,0.01110975]
[1765985398437,0.29231,90020.0,90014.0,0.01110938]
[1765985398659,0.29231,90020.0,90015.0,0.22218519]
[1765985398873,0.01110876,90019.0,90013.0,0.0111095]
[1765985399049,0.01110925,90015.0,90007.0,0.01111024]
[1765985399252,0.01377873,90014.0,90010.0,0.01110987]
[1765985399460,0.01110938,90014.0,90007.0,0.01111024]
[1765985399609,0.00161,90020.0,90015.0,0.22218421]
[1765985399833,0.00161,90020.0,90018.0,0.22217541]
[1765985400033,0.30341864,90020.0,90013.0,0.0111095]
[1765985400233,0.00161,90020.0,89999.0,0.01111123]
[1765985400463,0.01110925,90015.0,90010.0,0.01110987]
[1765985400633,0.0111095,90013.0,90010.0,0.001]
[1765985400837,0.2907,90025.0,90022.0,0.01110839]
[1765985401060,0.51147,90045.0,90024.0,0.00161287]
[1765985401268,0.01792,90047.0,90024.0,0.00161287]
[1765985401420,0.01110679,90035.0,90025.0,0.22216051]
[1765985401629,0.01110679,90035.0,90024.0,0.00161287]
[1765985401630,0.0111079,90026.0,90018.0,0.01110888]
[1765985401837,0.01792,90034.0,90027.0,0.01110777]
[1765985401838,0.01110716,90032.0,90027.0,0.01110777]
[1765985402044,0.01110925,90015.0,90010.0,0.02902987]
[1765985402250,0.22219966,90010.0,89999.0,0.01111123]
[1765985402466,0.01111209,89992.0,89985.0,0.01111296]
[1765985402674,0.01111222,89991.0,89986.0,0.01111283]
[1765985402878,0.01792,90005.0,89972.0,0.01792]
[1765985402879,0.01111321,89983.0,89977.0,0.22227776]
[1765985403093,0.23336524,89988.0,89982.0,0.01111333]
[1765985403298,0.01111148,89997.0,89989.0,0.01111246]
[1765985403526,0.01111098,90001.0,89994.0,0.23334812]
[1765985403727,0.0111116,89996.0,89987.0,0.2222529]
[1765985403927,0.22224202,89992.0,89982.0,0.01111333]
[1765985404133,0.23335203,89993.0,89987.0,0.23336546]
[1765985404325,0.01111197,89993.0,89987.0,0.01111271]
[1765985404617,0.01111209,89992.0,89986.0,0.01111283]
[1765985404854,0.01111172,89995.0,89989.0,0.01111246]
[1765985405050,0.01111148,89997.0,89991.0,0.01111222]
[1765985405259,0.002,90001.0,89987.0,0.22225215]
[1765985405460,0.22223064,89997.0,89989.0,0.01111246]
[1765985405799,0.002,90001.0,89998.0,0.22222447]
[1765985406021,0.69496463,90040.0,90015.0,0.01110925]
[1765985406022,0.2907,90021.0,90015.0,0.01110925]
[1765985406223,1.12379154,90054.0,90012.0,0.22219065]
[1765985406224,0.01110753,90029.0,90020.0,0.01110864]
[1765985406469,0.01110753,90029.0,90017.0,0.01110901]
[1765985406672,0.01110864,90020.0,90011.0,0.01110975]
[1765985406874,0.01110864,90020.0,90010.0,0.01110987]
[1765985407022,0.69496463,90040.0,90018.0,0.01110888]
[1765985407023,0.2332716,90024.0,90018.0,0.01110888]
[1765985407225,0.01110765,90028.0,90018.0,0.01110888]
[1765985407425,0.001,90021.0,90015.0,0.01110925]
[1765985407609,0.22215701,90027.0,90020.0,0.01110864]
[1765985407813,0.01788,90029.0,90027.0,0.22215346]
[1765985408040,0.01110666,90036.0,90024.0,0.01110814]
[1765985408346,0.01110753,90029.0,90024.0,0.23327072]
[1765985408614,0.01788,90035.0,90034.0,0.2221383]
[1765985408815,0.0017,90046.0,90043.0,0.0111058]
[1765985408987,0.01110555,90045.0,90040.0,0.01110617]
[1765985409128,0.01280543,90046.0,90041.0,0.01110605]
[1765985409335,9e-05,90046.0,90038.0,0.01110642]
[1765985409722,9e-05,90046.0,90043.0,0.0111058]
[1765985409957,0.22204664,90072.0,90058.0,0.2220791]
[1765985410159,0.22204664,90072.0,90061.0,0.01110358]
[1765985410160,0.01110284,90067.0,90061.0,0.01110358]
[1765985410353,0.01110358,90061.0,90057.0,0.01110407]
[1765985410639,0.01110494,90050.0,90042.0,0.01110592]
[1765985410831,0.00161,90061.0,90037.0,0.01110654]
[1765985410832,0.01110568,90044.0,90037.0,0.23323723]
[1765985411035,0.22212835,90039.0,90033.0,0.22213905]
[1765985411335,0.01110629,90039.0,90034.0,0.01110691]
[1765985411568,0.01110654,90037.0,90030.0,0.01788]
[1765985411774,0.01110543,90046.0,90039.0,0.01110629]
[1765985411948,0.01110543,90046.0,90039.0,0.23323009]
[1765985412294,0.00161,90050.0,90048.0,0.22210271]
[1765985412478,0.00161,90050.0,90032.0,0.49524]
[1765985412479,0.0111037,90060.0,90055.0,0.01110432]
[1765985412674,0.01110296,90066.0,90061.0,0.01110358]
[1765985412909,0.01110309,90065.0,90061.0,0.01110358]
[1765985413127,0.00188775,90062.0,90058.0,0.01110395]
[1765985413354,0.00188775,90062.0,90042.0,0.30858]
[1765985413355,0.22213672,90035.0,90033.0,0.001]
[1765985413561,0.22213672,90035.0,90016.0,0.49524]
[1765985413562,0.01110876,90019.0,90003.0,1.2836]
[1765985413816,0.22216791,90022.0,90015.0,0.01110925]